fUST/lending_fUST_20250429
["ID","MTS","AMOUNT","RATE_DAILY","PERIOD"]
[359264704,1745878238295,-400.0,0.00021917,2]
[359264705,1745878238305,-400.0,0.00021917,2]
[359264706,1745878238314,-400.0,0.00021917,2]
[359264707,1745878238324,-400.0,0.00021917,2]
[359264708,1745878238333,-497.04,0.00021917,2]
[359264709,1745878238343,-1024.51,0.00021917,2]
[359264710,1745878238353,-400.0,0.00021917,2]
[359264711,1745878238363,-400.0,0.00021917,2]
[359264712,1745878238372,-400.0,0.00021917,2]
[359264713,1745878238381,-400.0,0.00021917,2]
[359264714,1745878238390,-400.0,0.00021917,2]
[359264716,1745878238400,-400.0,0.00021917,2]
[359264718,1745878238409,-400.0,0.00021917,2]
[359264720,1745878238418,-400.0,0.00021917,2]
[359264722,1745878238427,-663.53,0.00021917,2]
[359264724,1745878238436,-400.0,0.00021917,2]
[359264726,1745878238447,-400.0,0.00021917,2]
[359264727,1745878238457,-400.0,0.00021917,2]
[359264728,1745878238467,-427.75,0.00021917,2]
[359264729,1745878238476,-400.0,0.00021917,2]
[359264730,1745878238486,-400.0,0.00021917,2]
[359264731,1745878238496,-400.0,0.00021917,2]
[359264732,1745878238505,-400.0,0.00021917,2]
[359264733,1745878238515,-400.0,0.00021917,2]
[359264734,1745878238525,-400.0,0.00021917,2]
[359264735,1745878238534,-400.0,0.00021917,2]
[359264736,1745878238543,-400.0,0.00021917,2]
[359264737,1745878238553,-225.4408119,0.00021917,2]
[359264738,1745878238563,-400.0,0.00021917,2]
[359264739,1745878238574,-400.0,0.00021917,2]
[359264740,1745878238584,-400.0,0.00021917,2]
[359264741,1745878238597,-400.0,0.00021917,2]
[359264742,1745878238607,-400.0,0.00021917,2]
[359264743,1745878238616,-625.72,0.00021917,2]
[359264744,1745878238626,-400.0,0.00021917,2]
[359264745,1745878238635,-459.06,0.00021917,2]
[359264746,1745878238645,-877.32,0.00021917,2]
[359264747,1745878238654,-400.0,0.00021917,2]
[359264748,1745878238664,-400.0,0.00021917,2]
[359264749,1745878238674,-437.89,0.00021917,2]
[359264750,1745878238683,-400.0,0.00021917,2]
[359264751,1745878238693,-400.0,0.00021917,2]
[359264752,1745878238703,-562.88,0.00021917,2]
[359264753,1745878238712,-400.0,0.00021917,2]
[359264754,1745878238722,-547.5,0.00021917,2]
[359264755,1745878238733,-406.3,0.00021917,2]
[359264756,1745878238742,-439.77,0.00021917,2]
[359264757,1745878238751,-774.04,0.00021917,2]
[359264758,1745878238761,-400.0,0.00021917,2]
[359264759,1745878238770,-548.76,0.00021917,2]
[359264760,1745878238782,-400.0,0.00021917,2]
[359264761,1745878238791,-400.0,0.00021917,2]
[359264762,1745878238802,-400.0,0.00021917,2]
[359264763,1745878238811,-400.0,0.00021917,2]
[359264764,1745878238822,-400.0,0.00021917,2]
[359264765,1745878238831,-400.0,0.00021917,2]
[359264766,1745878238841,-500.0,0.00021917,2]
[359264767,1745878238851,-400.0,0.00021917,2]
[359264768,1745878238861,-400.0,0.00021917,2]
[359264769,1745878238871,-464.61,0.00021917,2]
[359264770,1745878238881,-1809.75,0.00021917,2]
[359264771,1745878238891,-970.81,0.00021917,2]
[359264772,1745878238902,-505.34,0.00021917,2]
[359264773,1745878238911,-400.0,0.00021917,2]
[359264774,1745878238921,-538.7,0.00021917,2]
[359264775,1745878238932,-402.11,0.00021917,2]
[359264776,1745878238942,-1017.77,0.00021917,2]
[359264777,1745878238951,-400.0,0.00021917,2]
[359264778,1745878238961,-543.44,0.00021917,2]
[359264779,1745878238971,-400.0,0.00021917,2]
[359264780,1745878238980,-498.63,0.00021917,2]
[359264781,1745878238991,-500.0,0.00021917,2]
[359264782,1745878239001,-400.0,0.00021917,2]
[359264783,1745878239010,-1076.68,0.00021917,2]
[359264784,1745878239021,-400.0,0.00021917,2]
[359264785,1745878239030,-400.0,0.00021917,2]
[359264786,1745878239040,-714.92,0.00021917,2]
[359264787,1745878239050,-360.22165966,0.00021917,2]
[359264788,1745878239061,-400.0,0.00021917,2]
[359264789,1745878239070,-400.0,0.00021917,2]
[359264790,1745878239079,-817.96,0.00021917,2]
[359264791,1745878239089,-459.87520404,0.00021917,2]
[359264792,1745878239098,-400.0,0.00021917,2]
[359264793,1745878239107,-663.05,0.00021917,2]
[359264794,1745878239116,-2504.44,0.00021917,2]
[359264795,1745878239126,-489.31,0.00021917,2]
[359264796,1745878239135,-400.0,0.00021917,2]
[359264797,1745878239145,-400.0,0.00021917,2]
[359264798,1745878239154,-400.0,0.00021917,2]
[359264799,1745878239165,-403.91,0.00021917,2]
[359264800,1745878239174,-400.0,0.00021917,2]
[359264801,1745878239184,-2003.74,0.00021917,2]
[359264802,1745878239194,-400.0,0.00021917,2]
[359264803,1745878239203,-400.0,0.00021917,2]
[359264804,1745878239213,-2390.54,0.00021917,2]
[359264805,1745878239223,-676.66,0.00021917,2]
[359264806,1745878239233,-400.0,0.00021917,2]
[359264807,1745878239244,-452.73,0.00021917,2]
[359264808,1745878239253,-400.0,0.00021917,2]
[359264809,1745878239263,-400.0,0.00021917,2]
[359264810,1745878239275,-400.0,0.00021917,2]
[359264811,1745878239285,-4000.21,0.00021917,2]
[359264812,1745878239296,-400.0,0.00021917,2]
[359264813,1745878239305,-2496.22,0.00021917,2]
[359264814,1745878239315,-876.36,0.00021917,2]
[359264815,1745878239325,-400.0,0.00021917,2]
[359264816,1745878239335,-400.0,0.00021917,2]
[359264817,1745878239344,-575.75,0.00021917,2]
[359264818,1745878239354,-400.0,0.00021917,2]
[359264819,1745878239363,-433.48,0.00021917,2]
[359264820,1745878239372,-1506.86,0.00021917,2]
[359264821,1745878239382,-400.0,0.00021917,2]
[359264822,1745878239391,-400.0,0.00021917,2]
[359264823,1745878239401,-423.53,0.00021917,2]
[359264824,1745878239410,-606.43,0.00021917,2]
[359264825,1745878239419,-400.0,0.00021917,2]
[359264826,1745878239429,-691.2,0.00021917,2]
[359264827,1745878239438,-400.0,0.00021917,2]
[359264828,1745878239447,-400.0,0.00021917,2]
[359264829,1745878239457,-719.1,0.00021917,2]
[359264830,1745878239466,-400.0,0.00021917,2]
[359264831,1745878239476,-400.0,0.00021917,2]
[359264832,1745878239486,-400.0,0.00021917,2]
[359264833,1745878239495,-400.0,0.00021917,2]
[359264834,1745878239504,-1933.25,0.00021917,2]
[359264835,1745878239514,-1499.16,0.00021917,2]
[359264836,1745878239524,-5396.45304718,0.00021917,2]
[359264837,1745878239547,-189.90695282,0.00021917,2]
[359264838,1745878239557,-467.63,0.00021917,2]
[359264839,1745878239567,-767.21,0.00021917,2]
[359264840,1745878239577,-122.82888052,0.00021917,2]
[359264841,1745878239599,-579.95111948,0.00021917,2]
[359264842,1745878239608,-400.0,0.00021917,2]
[359264843,1745878239618,-476.66391308,0.00021917,2]
[359264844,1745878239631,-335.97608692,0.00021917,2]
[359264845,1745878239641,-400.0,0.00021917,2]
[359264846,1745878239651,-400.0,0.00021917,2]
[359264847,1745878239661,-400.0,0.00021917,2]
[359264848,1745878239671,-408.6,0.00021917,2]
[359264849,1745878239681,-400.0,0.00021917,2]
[359264850,1745878239690,-1295.71,0.00021917,2]
[359264851,1745878239700,-400.0,0.00021917,2]
[359264852,1745878239709,-805.63,0.00021917,2]
[359264853,1745878239718,-400.0,0.00021917,2]
[359264854,1745878239728,-400.0,0.00021917,2]
[359264855,1745878239738,-531.29,0.00021917,2]
[359264856,1745878239747,-400.0,0.00021917,2]
[359264857,1745878239757,-524.34133792,0.00021917,2]
[359264989,1745878243549,-1139.90866208,0.00021917,2]
[359264991,1745878243559,-446.95,0.00021917,2]
[359264993,1745878243569,-2046.85,0.00021917,2]
[359264994,1745878243578,-213.12651549,0.00021917,2]
[359264995,1745878243589,-1786.39,0.00021917,2]
[359264996,1745878243603,-400.0,0.00021917,2]
[359264998,1745878243612,-400.0,0.00021917,2]
[359265000,1745878243622,-400.0,0.00021917,2]
[359265002,1745878243631,-8865.41,0.00021917,2]
[359265004,1745878243641,-400.0,0.00021917,2]
[359265006,1745878243651,-452.78,0.00021917,2]
[359265008,1745878243660,-400.0,0.00021917,2]
[359265010,1745878243669,-400.0,0.00021917,2]
[359265013,1745878243680,-400.0,0.00021917,2]
[359265015,1745878243689,-466.44,0.00021917,2]
[359265018,1745878243699,-400.0,0.00021917,2]
[359265021,1745878243709,-400.0,0.00021917,2]
[359265023,1745878243718,-400.0,0.00021917,2]
[359265024,1745878243728,-522.68,0.00021917,2]
[359265026,1745878243737,-1233.67,0.00021917,2]
[359265027,1745878243747,-400.0,0.00021917,2]
[359265028,1745878243756,-400.0,0.00021917,2]
[359265030,1745878243766,-500.0,0.00021917,2]
[359265031,1745878243775,-309.79752481,0.00021917,2]
[359265034,1745878243785,-400.0,0.00021917,2]
[359265035,1745878243794,-865.18,0.00021917,2]
[359265036,1745878243804,-400.0,0.00021917,2]
[359265038,1745878243813,-765.29,0.00021917,2]
[359265039,1745878243823,-400.0,0.00021917,2]
[359265040,1745878243832,-400.0,0.00021917,2]
[359265041,1745878243842,-400.0,0.00021917,2]
[359265042,1745878243851,-2253.11,0.00021917,2]
[359265043,1745878243861,-633.37,0.00021917,2]
[359265044,1745878243870,-541.05,0.00021917,2]
[359265045,1745878243880,-400.0,0.00021917,2]
[359265046,1745878243889,-442.35,0.00021917,2]
[359265047,1745878243899,-400.0,0.00021917,2]
[359265048,1745878243909,-400.0,0.00021917,2]
[359265049,1745878243921,-400.0,0.00021917,2]
[359265050,1745878243930,-991.47,0.00021917,2]
[359265051,1745878243940,-762.26,0.00021917,2]
[359265052,1745878243950,-400.0,0.00021917,2]
[359265053,1745878243960,-656.63373141,0.00021917,2]
[359265056,1745878244308,-1300.08626859,0.00021917,2]
[359265057,1745878244317,-425.91,0.00021917,2]
[359265058,1745878244327,-400.0,0.00021917,2]
[359265059,1745878244337,-444.59,0.00021917,2]
[359265060,1745878244347,-439.57131476,0.00021917,2]
[359265061,1745878244358,-457.71,0.00021917,2]
[359265062,1745878244369,-400.0,0.00021917,2]
[359265063,1745878244379,-400.0,0.00021917,2]
[359265064,1745878244389,-657.27,0.00021917,2]
[359265065,1745878244401,-1462.22,0.00021917,2]
[359265066,1745878244412,-2465.84,0.00021917,2]
[359265067,1745878244423,-400.0,0.00021917,2]
[359265068,1745878244432,-400.0,0.00021917,2]
[359265069,1745878244442,-400.0,0.00021917,2]
[359265070,1745878244452,-448.55363414,0.00021917,2]
[359265071,1745878244462,-297.45234574,0.00021917,2]
[359265072,1745878244476,-474.42618995,0.00021917,2]
[359265074,1745878244491,-562.09146431,0.00021917,2]
[359265076,1745878244501,-400.0,0.00021917,2]
[359265077,1745878244511,-400.0,0.00021917,2]
[359265079,1745878244520,-3697.4,0.00021917,2]
[359265080,1745878244530,-577.59,0.00021917,2]
[359265081,1745878244539,-400.0,0.00021917,2]
[359265082,1745878244549,-1549.2,0.00021917,2]
[359265083,1745878244559,-458.09,0.00021917,2]
[359265084,1745878244569,-400.0,0.00021917,2]
[359265085,1745878244578,-400.0,0.00021917,2]
[359265086,1745878244589,-400.0,0.00021917,2]
[359265087,1745878244601,-2253.84,0.00021917,2]
[359265088,1745878244610,-788.95,0.00021917,2]
[359265089,1745878244620,-1093.65,0.00021917,2]
[359265090,1745878244630,-400.0,0.00021917,2]
[359265091,1745878244639,-400.0,0.00021917,2]
[359265092,1745878244648,-500.0,0.00021917,2]
[359265093,1745878244658,-3304.39,0.00021917,2]
[359265094,1745878244669,-400.0,0.00021917,2]
[359265095,1745878244679,-400.0,0.00021917,2]
[359265096,1745878244688,-400.0,0.00021917,2]
[359265097,1745878244697,-1121.5,0.00021917,2]
[359265098,1745878244707,-400.0,0.00021917,2]
[359265099,1745878244860,-400.0,0.00021917,2]
[359265100,1745878244878,-400.0,0.00021917,2]
[359265101,1745878244889,-248.88213999,0.00021917,2]
[359265102,1745878244899,-669.2,0.00021917,2]
[359265103,1745878244909,-400.0,0.00021917,2]
[359265104,1745878244919,-3206.37,0.00021917,2]
[359265105,1745878244930,-500.0,0.00021917,2]
[359265106,1745878244940,-867.87,0.00021917,2]
[359265107,1745878244950,-1031.82,0.00021917,2]
[359265108,1745878244960,-400.0,0.00021917,2]
[359265109,1745878244969,-310.67997408,0.00021918,2]
[359265110,1745878244979,-373.32464031,0.00021918,2]
[359265111,1745878244989,-500.0,0.00021973,2]
[359265112,1745878244998,-500.67474896,0.00021973,2]
[359265113,1745878245008,-500.0,0.00021973,2]
[359265114,1745878245018,-500.0,0.00021973,2]
[359265115,1745878245027,-468.42567806,0.00021973,2]
[359265116,1745878245037,-500.0,0.00021973,2]
[359265117,1745878245047,-500.0,0.00021973,2]
[359265118,1745878245056,-500.0,0.00021973,2]
[359265119,1745878245066,-500.0,0.00021973,2]
[359265120,1745878245075,-500.0,0.00021973,2]
[359265121,1745878245085,-500.0,0.00021973,2]
[359265122,1745878245094,-500.0,0.00021973,2]
[359265123,1745878245104,-500.0,0.00021973,2]
[359265124,1745878245114,-500.0,0.00021973,2]
[359265125,1745878245124,-500.0,0.00021973,2]
[359265126,1745878245134,-500.0,0.00021973,2]
[359265127,1745878245143,-500.0,0.00021973,2]
[359265128,1745878245153,-500.0,0.00021973,2]
[359265129,1745878245163,-500.0,0.00021973,2]
[359265130,1745878245173,-500.0,0.00021973,2]
[359265131,1745878245183,-300.0,0.00021973,2]
[359265132,1745878245194,-500.0,0.00021973,2]
[359265133,1745878245205,-500.0,0.00021973,2]
[359265134,1745878245215,-500.0,0.00021973,2]
[359265135,1745878245224,-8283.31874611,0.00022091,2]
[359265136,1745878245234,-420.0,0.00022097,2]
[359265137,1745878245244,-501.98415373,0.00022173,2]
[359265138,1745878245255,-500.0,0.00022173,2]
[359265139,1745878245264,-500.0,0.00022173,2]
[359265140,1745878245274,-616.97677083,0.00022173,2]
[359265141,1745878245285,-500.0,0.00022173,2]
[359265142,1745878245295,-500.0,0.00022173,2]
[359265143,1745878245305,-637.25114022,0.00022173,2]
[359265144,1745878245315,-500.0,0.00022173,2]
[359265145,1745878245325,-500.0,0.00022173,2]
[359265146,1745878245334,-500.0,0.00022173,2]
[359265147,1745878245343,-500.0,0.00022173,2]
[359265148,1745878245352,-500.0,0.00022173,2]
[359265149,1745878245362,-400.0,0.00022191,2]
[359265150,1745878245371,-52.0048785,0.00022191,2]
[359265151,1745878245384,-262.248948,0.00022191,2]
[359265153,1745878246068,-111.2761735,0.00022191,2]
[359265154,1745878246077,-400.0,0.00022191,2]
[359265155,1745878246087,-400.0,0.00022191,2]
[359265156,1745878246097,-400.0,0.00022191,2]
[359265157,1745878246107,-400.0,0.00022191,2]
[359265158,1745878246116,-400.0,0.00022191,2]
[359265159,1745878246127,-400.0,0.00022191,2]
[359265160,1745878246136,-400.0,0.00022191,2]
[359265161,1745878246146,-400.0,0.00022191,2]
[359265162,1745878246155,-610.87,0.00022191,2]
[359265163,1745878246165,-400.0,0.00022191,2]
[359265164,1745878246174,-400.0,0.00022191,2]
[359265166,1745878246184,-2164.33,0.00022191,2]
[359265168,1745878246194,-400.0,0.00022191,2]
[359265170,1745878246203,-613.85,0.00022191,2]
[359265172,1745878246212,-400.0,0.00022191,2]
[359265174,1745878246222,-400.0,0.00022191,2]
[359265176,1745878246232,-400.0,0.00022191,2]
[359265178,1745878246241,-805.6,0.00022191,2]
[359265180,1745878246250,-429.62,0.00022191,2]
[359265182,1745878246260,-416.37797731,0.00022191,2]
[359265184,1745878246270,-331.62110267,0.00022191,2]
[359265186,1745878246279,-400.0,0.00022191,2]
[359265188,1745878246288,-400.0,0.00022191,2]
[359265190,1745878246298,-383.34,0.00022191,2]
[359265192,1745878246308,-400.0,0.00022191,2]
[359265194,1745878246318,-400.0,0.00022191,2]
[359265196,1745878246327,-400.0,0.00022191,2]
[359265198,1745878246336,-400.0,0.00022191,2]
[359265200,1745878246346,-1379.74,0.00022191,2]
[359265202,1745878246356,-400.0,0.00022191,2]
[359265204,1745878246365,-615.58,0.00022191,2]
[359265206,1745878246374,-400.0,0.00022191,2]
[359265208,1745878246384,-1078.34,0.00022191,2]
[359265210,1745878246393,-654.98,0.00022191,2]
[359265212,1745878246402,-400.0,0.00022191,2]
[359265214,1745878246412,-515.05,0.00022191,2]
[359265216,1745878246421,-400.0,0.00022191,2]
[359265218,1745878246430,-400.0,0.00022191,2]
[359265220,1745878246440,-400.0,0.00022191,2]
[359265222,1745878246449,-400.0,0.00022191,2]
[359265224,1745878246458,-1035.13,0.00022191,2]
[359265226,1745878246467,-506.39,0.00022191,2]
[359265228,1745878246477,-582.21,0.00022191,2]
[359265230,1745878246486,-520.88,0.00022191,2]
[359265232,1745878246496,-356.68953317,0.00022191,2]
[359265234,1745878246505,-400.0,0.00022191,2]
[359265236,1745878246514,-400.0,0.00022191,2]
[359265238,1745878246523,-400.0,0.00022191,2]
[359265240,1745878246532,-497.04,0.00022191,2]
[359265242,1745878246542,-1024.51,0.00022191,2]
[359265244,1745878246552,-400.0,0.00022191,2]
[359265246,1745878246561,-400.0,0.00022191,2]
[359265248,1745878246570,-400.0,0.00022191,2]
[359265250,1745878246579,-400.0,0.00022191,2]
[359265252,1745878246589,-400.0,0.00022191,2]
[359265254,1745878246600,-400.0,0.00022191,2]
[359265256,1745878246609,-400.0,0.00022191,2]
[359265258,1745878246618,-400.0,0.00022191,2]
[359265260,1745878246628,-663.53,0.00022191,2]
[359265262,1745878246640,-400.0,0.00022191,2]
[359265264,1745878246650,-400.0,0.00022191,2]
[359265266,1745878246659,-400.0,0.00022191,2]
[359265268,1745878246669,-427.75,0.00022191,2]
[359265270,1745878246678,-400.0,0.00022191,2]
[359265272,1745878246687,-400.0,0.00022191,2]
[359265273,1745878246696,-400.0,0.00022191,2]
[359265276,1745878246706,-400.0,0.00022191,2]
[359265278,1745878246715,-400.0,0.00022191,2]
[359265280,1745878246724,-400.0,0.00022191,2]
[359265282,1745878246733,-400.0,0.00022191,2]
[359265283,1745878246742,-400.0,0.00022191,2]
[359265286,1745878246752,-400.0,0.00022191,2]
[359265288,1745878246761,-400.0,0.00022191,2]
[359265289,1745878246771,-400.0,0.00022191,2]
[359265292,1745878246780,-400.0,0.00022191,2]
[359265294,1745878246789,-400.0,0.00022191,2]
[359265296,1745878246799,-625.72,0.00022191,2]
[359265298,1745878246808,-400.0,0.00022191,2]
[359265300,1745878246819,-459.06,0.00022191,2]
[359265302,1745878246830,-877.32,0.00022191,2]
[359265304,1745878246840,-400.0,0.00022191,2]
[359265306,1745878246849,-400.0,0.00022191,2]
[359265308,1745878246858,-437.89,0.00022191,2]
[359265310,1745878246868,-400.0,0.00022191,2]
[359265312,1745878246877,-400.0,0.00022191,2]
[359265314,1745878246887,-562.88,0.00022191,2]
[359265316,1745878246897,-400.0,0.00022191,2]
[359265317,1745878246906,-547.5,0.00022191,2]
[359265318,1745878246915,-406.3,0.00022191,2]
[359265320,1745878246924,-439.77,0.00022191,2]
[359265321,1745878246934,-774.04,0.00022191,2]
[359265323,1745878246943,-300.0,0.00022191,2]
[359265325,1745878246953,-548.76,0.00022191,2]
[359265327,1745878246962,-400.0,0.00022191,2]
[359265329,1745878246971,-400.0,0.00022191,2]
[359265331,1745878246980,-400.0,0.00022191,2]
[359265333,1745878246990,-400.0,0.00022191,2]
[359265334,1745878246999,-400.0,0.00022191,2]
[359265336,1745878247008,-400.0,0.00022191,2]
[359265338,1745878247018,-500.0,0.00022191,2]
[359265341,1745878247027,-350.18302795,0.00022191,2]
[359265342,1745878247036,-400.0,0.00022191,2]
[359265344,1745878247046,-464.61,0.00022191,2]
[359265347,1745878247056,-1809.75,0.00022191,2]
[359265349,1745878247066,-970.81,0.00022191,2]
[359265351,1745878247075,-505.34,0.00022191,2]
[359265353,1745878247084,-400.0,0.00022191,2]
[359265354,1745878247093,-538.7,0.00022191,2]
[359265356,1745878247103,-402.11,0.00022191,2]
[359265358,1745878247112,-1017.77,0.00022191,2]
[359265360,1745878247122,-400.0,0.00022191,2]
[359265362,1745878247131,-543.44,0.00022191,2]
[359265364,1745878247141,-400.0,0.00022191,2]
[359265366,1745878247150,-498.63,0.00022191,2]
[359265369,1745878247161,-500.0,0.00022191,2]
[359265370,1745878247170,-319.33504738,0.00022191,2]
[359265373,1745878247181,-400.0,0.00022191,2]
[359265375,1745878247192,-714.92,0.00022191,2]
[359265377,1745878247202,-400.0,0.00022191,2]
[359265379,1745878247212,-400.0,0.00022191,2]
[359265381,1745878247221,-817.96,0.00022191,2]
[359265383,1745878247231,-400.0,0.00022191,2]
[359265385,1745878247242,-663.05,0.00022191,2]
[359265387,1745878247251,-2504.44,0.00022191,2]
[359265388,1745878247261,-489.31,0.00022191,2]
[359265390,1745878247270,-400.0,0.00022191,2]
[359265392,1745878247279,-400.0,0.00022191,2]
[359265394,1745878247288,-400.0,0.00022191,2]
[359265396,1745878247298,-400.0,0.00022191,2]
[359265398,1745878247308,-403.91,0.00022191,2]
[359265400,1745878247318,-2003.74,0.00022191,2]
[359265402,1745878247327,-400.0,0.00022191,2]
[359265405,1745878247336,-400.0,0.00022191,2]
[359265406,1745878247345,-2390.54,0.00022191,2]
[359265409,1745878247355,-676.66,0.00022191,2]
[359265410,1745878247364,-400.0,0.00022191,2]
[359265412,1745878247373,-452.73,0.00022191,2]
[359265415,1745878247383,-400.0,0.00022191,2]
[359265417,1745878247392,-400.0,0.00022191,2]
[359265422,1745878247441,-400.0,0.00022191,2]
[359265425,1745878247451,-4000.21,0.00022191,2]
[359265427,1745878247461,-400.0,0.00022191,2]
[359265429,1745878247470,-2496.22,0.00022191,2]
[359265431,1745878247480,-876.36,0.00022191,2]
[359265433,1745878247490,-400.0,0.00022191,2]
[359265435,1745878247500,-400.0,0.00022191,2]
[359265436,1745878247510,-575.75,0.00022191,2]
[359265438,1745878247519,-400.0,0.00022191,2]
[359265440,1745878247529,-433.48,0.00022191,2]
[359265441,1745878247538,-1390.26957641,0.00022191,2]
[359265447,1745878247716,-116.59042359,0.00022191,2]
[359265448,1745878247726,-400.0,0.00022191,2]
[359265449,1745878247736,-400.0,0.00022191,2]
[359265450,1745878247745,-236.73315416,0.00022191,2]
[359265451,1745878247921,-400.0,0.00021917,2]
[359265452,1745878247931,-186.79684584,0.00022191,2]
[359265453,1745878247941,-606.43,0.00022191,2]
[359265454,1745878247950,-400.0,0.00022191,2]
[359265455,1745878247960,-691.2,0.00022191,2]
[359265456,1745878247969,-400.0,0.00022191,2]
[359265457,1745878247980,-400.0,0.00022191,2]
[359265458,1745878247989,-719.1,0.00022191,2]
[359265459,1745878247999,-225.2051831,0.00022191,2]
[359265460,1745878248011,-174.7948169,0.00022191,2]
[359265461,1745878248020,-400.0,0.00022191,2]
[359265462,1745878248030,-540.77618946,0.00022191,2]
[359265463,1745878248039,-400.0,0.00022191,2]
[359265464,1745878248049,-1933.25,0.00022191,2]
[359265465,1745878248059,-1499.16,0.00022191,2]
[359265466,1745878248068,-2186.68145162,0.00022191,2]
[359265467,1745878248085,-3399.67854838,0.00022191,2]
[359265468,1745878248095,-467.63,0.00022191,2]
[359265469,1745878248104,-767.21,0.00022191,2]
[359265470,1745878248114,-702.78,0.00022191,2]
[359265471,1745878248124,-400.0,0.00022191,2]
[359265472,1745878248134,-812.64,0.00022191,2]
[359265473,1745878248144,-400.0,0.00022191,2]
[359265474,1745878248153,-400.0,0.00022191,2]
[359265475,1745878248163,-400.0,0.00022191,2]
[359265476,1745878248172,-112.97811829,0.00022191,2]
[359265477,1745878248188,-295.62188171,0.00022191,2]
[359265478,1745878248198,-400.0,0.00022191,2]
[359265479,1745878248207,-1295.71,0.00022191,2]
[359265480,1745878248216,-400.0,0.00022191,2]
[359265481,1745878248226,-805.63,0.00022191,2]
[359265482,1745878248235,-400.0,0.00022191,2]
[359265483,1745878248244,-400.0,0.00022191,2]
[359265484,1745878248253,-531.29,0.00022191,2]
[359265485,1745878248263,-400.0,0.00022191,2]
[359265486,1745878248272,-1664.25,0.00022191,2]
[359265487,1745878248281,-446.95,0.00022191,2]
[359265488,1745878248290,-2046.85,0.00022191,2]
[359265489,1745878248300,-1786.39,0.00022191,2]
[359265490,1745878248309,-400.0,0.00022191,2]
[359265491,1745878248319,-400.0,0.00022191,2]
[359265492,1745878248329,-400.0,0.00022191,2]
[359265493,1745878248338,-8865.41,0.00022191,2]
[359265494,1745878248348,-400.0,0.00022191,2]
[359265495,1745878248357,-452.78,0.00022191,2]
[359265496,1745878248366,-400.0,0.00022191,2]
[359265497,1745878248376,-400.0,0.00022191,2]
[359265498,1745878248386,-400.0,0.00022191,2]
[359265499,1745878248395,-466.44,0.00022191,2]
[359265500,1745878248405,-400.0,0.00022191,2]
[359265501,1745878248415,-400.0,0.00022191,2]
[359265502,1745878248425,-400.0,0.00022191,2]
[359265503,1745878248434,-522.68,0.00022191,2]
[359265504,1745878248444,-1233.67,0.00022191,2]
[359265505,1745878248453,-400.0,0.00022191,2]
[359265506,1745878248463,-400.0,0.00022191,2]
[359265507,1745878248472,-500.0,0.00022191,2]
[359265508,1745878248481,-400.0,0.00022191,2]
[359265509,1745878248491,-865.18,0.00022191,2]
[359265510,1745878248500,-400.0,0.00022191,2]
[359265511,1745878248508,-765.29,0.00022191,2]